[Event "58th Akiba Rubinstein B 2022"]
[Site "Polanica-Zdroj"]
[Date "2022.08.17"]
[Round "5.7"]
[White "Graff, Slawomir"]
[Black "Terkiewicz, Bruno"]
[Result "1/2-1/2"]
[ECO "D30"]
[WhiteElo "1782"]
[BlackElo "1473"]
[Annotator "NA RC"]
[PlyCount "125"]
[EventDate "2022.08.13"]
[EventCountry "POL"]
[SourceTitle "playchess.com"]
[Source "ChessBase"]
[SourceQuality "1"]
[TimeControl "40/5400+30:1800+30"]

1. d4 {[%emt 0:00:05]} d5 {[%emt 0:00:02]} 2. c4 {[%emt 0:00:07]} e6 {[%emt 0:00:02]} 3. cxd5 {[%emt 0:00:06]} exd5 {[%emt 0:00:04]} 4. Nc3 {[%emt 0:00:06]} c6 {[%emt 0:00:03]} 5. Bf4 {[%emt 0:00:32]} Bd6 {[%emt 0:00:11]} 6. Bxd6 {[%emt 0:00:09]} Qxd6 {[%emt 0:00:05]} 7. e3 {[%emt 0:00:07]} Bf5 {[%emt 0:00:08]} 8. Bd3 {[%emt 0:00:10]} Bxd3 {[%emt 0:00:09]} 9. Qxd3 {[%emt 0:00:07]} Nf6 {[%emt 0:00:04]} 10. Nge2 {[%emt 0:00:15]} Nbd7 {[%emt 0:00:09]} 11. h3 {[%emt 0:00:15]} Nb6 {[%emt 0:01:41]} 12. O-O {[%emt 0:01:07]} O-O {[%emt 0:00:09]} 13. Rab1 {[%emt 0:00:53]} a6 {[%emt 0:00:21]} 14. b4 {[%emt 0:01:09]} Rfe8 {[%emt 0:02:37]} 15. a4 {[%emt 0:01:26]} Nc4 {[%emt 0:00:22]} 16. b5 {[%emt 0:01:09]} axb5 {[%emt 0:05:18]} 17. axb5 {[%emt 0:00:11]} Ra3 {[%emt 0:03:06]} 18. bxc6 {[%emt 0:05:27]} bxc6 {[%emt 0:02:08]} 19. Rfc1 {[%emt 0:05:25]} g6 {[%emt 0:01:14]} 20. Qd1 {[%emt 0:03:23]} Kg7 {[%emt 0:04:13]} 21. Nf4 {[%emt 0:06:49]} h5 {[%emt 0:15:34]} 22. Nd3 {[%emt 0:16:16]} g5 {[%emt 0:05:30]} 23. Nb2 {[%emt 0:00:07]} Nxb2 {[%emt 0:03:25]} 24. Rxb2 {[%emt 0:03:33]} Ra6 25. Qd3 Rea8 {[%emt 0:04:56]} 26. Qf5 {[%emt 0:07:28]} Kh6 {[%emt 0:02:04]} 27. Rb7 {[%emt 0:04:38]} R8a7 {[%emt 0:01:09]} 28. Rxa7 {[%emt 0:04:07]} Rxa7 {[%emt 0:00:05]} 29. e4 dxe4 {[%emt 0:01:24]} 30. Nxe4 {[%emt 0:06:07]} Nxe4 {[%emt 0:00:07]} 31. Qxe4 {[%emt 0:07:31]} Ra4 32. Qxc6 Rxd4 {[%emt 0:04:14]} 33. Qxd6+ {[%emt 0:06:10]} Rxd6 {[%emt 0:00:41]} 34. g3 {[%emt 0:02:10]} Rd4 {[%emt 0:00:53]} 35. Rc6+ {[%emt 0:00:20]} Kg7 {[%emt 0:00:07]} 36. Kg2 {[%emt 0:00:19]} h4 {[%emt 0:00:32]} 37. gxh4 {[%emt 0:01:12]} Rxh4 {[%emt 0:00:12]} 38. Kg3 {[%emt 0:00:12]} f6 {[%emt 0:00:22]} 39. Ra6 {[%emt 0:00:45]} Kg6 {[%emt 0:00:21]} 40. Ra8 {[%emt 0:00:00]} Rd4 {[%emt 0:00:00]} 41. Rg8+ {[%emt 0:01:11]} Kf5 {[%emt 0:00:38]} 42. Ra8 {[%emt 0:00:56]} Rd3+ {[%emt 0:00:19]} 43. Kg2 {[%emt 0:00:51]} Ke5 {[%emt 0:00:53]} 44. Re8+ {[%emt 0:02:37]} Kf4 {[%emt 0:00:44]} 45. Rf8 {[%emt 0:00:10]} Rd6 {[%emt 0:01:02]} 46. Rf7 {[%emt 0:00:11]} Re6 {[%emt 0:00:23]} 47. Rf8 {[%emt 0:00:13]} Ke5 {[%emt 0:00:12]} 48. Rd8 {[%emt 0:00:23]} Kf4 {[%emt 0:00:34]} 49. Rf8 {[%emt 0:00:14]} Kf5 {[%emt 0:00:08]} 50. Rg8 {[%emt 0:00:44]} Re4 {[%emt 0:00:11]} 51. Rd8 {[%emt 0:02:01]} Rf4 {[%emt 0:00:29]} 52. Kg3 {[%emt 0:00:56]} Ke4 {[%emt 0:00:23]} 53. Re8+ {[%emt 0:00:20]} Kd3 {[%emt 0:00:22]} 54. Re6 {[%emt 0:00:35]} Rf5 {[%emt 0:00:46]} 55. Kg2 {[%emt 0:00:40]} Kd4 {[%emt 0:00:06]} 56. Kg3 {[%emt 0:00:39]} Kd5 {[%emt 0:00:08]} 57. Re8 {[%emt 0:00:14]} Rf4 {[%emt 0:00:25]} 58. Re7 {[%emt 0:02:06]} Kd6 {[%emt 0:00:18]} 59. Re8 {[%emt 0:00:16]} Kd7 {[%emt 0:00:11]} 60. Re3 {[%emt 0:00:21]} Kd6 {[%emt 0:01:56]} 61. Re8 {[%emt 0:01:41]} Kd7 {[%emt 0:00:15]} 62. Re3 {[%emt 0:00:08]} Kd6 {[%emt 0:00:28]} 63. Re8 {[%emt 0:00:17]} 1/2-1/2

[Event "58th Akiba Rubinstein B 2022"]
[Site "Polanica-Zdroj"]
[Date "2022.08.17"]
[Round "5.8"]
[White "Mielczarek, Daniel"]
[Black "Sypien, Natan"]
[Result "*"]
[ECO "E20"]
[WhiteElo "1912"]
[BlackElo "1780"]
[Annotator "NA RC"]
[PlyCount "32"]
[EventDate "2022.08.13"]
[EventCountry "POL"]
[SourceTitle "playchess.com"]
[Source "ChessBase"]
[SourceQuality "1"]
[TimeControl "40/5400+30:1800+30"]

1. d4 {[%emt 0:00:03]} Nf6 {[%emt 0:00:08]} 2. c4 {[%emt 0:00:02]} e6 {[%emt 0:00:12]} 3. Nc3 {[%emt 0:00:02]} Bb4 {[%emt 0:00:17]} 4. Qc2 {[%emt 0:00:17]} O-O {[%emt 0:02:06]} 5. Nf3 {[%emt 0:00:14]} c5 {[%emt 0:03:52]} 6. dxc5 {[%emt 0:00:10]} Qa5 {[%emt 0:03:26]} 7. Bd2 {[%emt 0:01:10]} Qxc5 {[%emt 0:02:08]} 8. e3 {[%emt 0:02:33]} d5 {[%emt 0:09:23]} 9. Rc1 {[%emt 0:08:36]} dxc4 {[%emt 0:06:13]} 10. Ne4 {[%emt 0:01:02]} Nxe4 {[%emt 0:06:16]} 11. Qxe4 {[%emt 0:00:17]} Qb6 {[%emt 0:08:25]} 12. Qxc4 {[%emt 0:08:57]} Bxd2+ {[%emt 0:04:16]} 13. Nxd2 {[%emt 0:00:03]} Bd7 {[%emt 0:01:55]} 14. Qb3 {[%emt 0:01:54]} Qxb3 {[%emt 0:05:56]} 15. Nxb3 {[%emt 0:00:13]} Bc6 {[%emt 0:02:25]} 16. Na5 {[%emt 0:06:42]} Bd5 {[%emt 0:03:49]} *

[Event "58th Akiba Rubinstein B 2022"]
[Site "Polanica-Zdroj"]
[Date "2022.08.17"]
[Round "5.8"]
[White "Ochenduszko, Bartosz"]
[Black "Kossowski, Pawel"]
[Result "0-1"]
[ECO "E32"]
[WhiteElo "1546"]
[BlackElo "1737"]
[Annotator "NA RC"]
[PlyCount "116"]
[EventDate "2022.08.13"]
[EventCountry "POL"]
[SourceTitle "playchess.com"]
[Source "ChessBase"]
[SourceQuality "1"]
[TimeControl "40/5400+30:1800+30"]

1. d4 {[%emt 0:00:03]} Nf6 {[%emt 0:00:08]} 2. c4 {[%emt 0:00:02]} e6 {[%emt 0:00:12]} 3. Nc3 {[%emt 0:00:02]} Bb4 {[%emt 0:00:17]} 4. Qc2 {[%emt 0:00:17]} O-O {[%emt 0:02:06]} 5. Nf3 {[%emt 0:00:14]} c5 {[%emt 0:03:52]} 6. dxc5 {[%emt 0:00:10]} Qa5 {[%emt 0:03:26]} 7. Bd2 {[%emt 0:01:10]} Qxc5 {[%emt 0:02:08]} 8. e3 {[%emt 0:02:33]} d5 {[%emt 0:09:23]} 9. Rc1 {[%emt 0:08:36]} dxc4 {[%emt 0:06:13]} 10. Ne4 {[%emt 0:01:02]} Nxe4 {[%emt 0:06:16]} 11. Qxe4 {[%emt 0:00:17]} Qb6 {[%emt 0:08:25]} 12. Qxc4 {[%emt 0:08:57]} Bxd2+ {[%emt 0:04:16]} 13. Nxd2 {[%emt 0:00:03]} Bd7 {[%emt 0:01:55]} 14. Qb3 {[%emt 0:01:54]} Qxb3 {[%emt 0:05:56]} 15. Nxb3 {[%emt 0:00:13]} Bc6 {[%emt 0:02:25]} 16. Na5 {[%emt 0:06:42]} Bd5 {[%emt 0:03:49]} 17. Bc4 {[%emt 0:13:21]} Bxg2 {[%emt 0:03:11]} 18. Rg1 {[%emt 0:00:14]} Bf3 {[%emt 0:00:43]} 19. Rg3 {[%emt 0:00:19]} Bc6 {[%emt 0:01:12]} 20. Bd3 {[%emt 0:06:37]} Rd8 {[%emt 0:04:03]} 21. Ke2 {[%emt 0:01:58]} g6 {[%emt 0:07:34]} 22. Rg4 {[%emt 0:05:59]} Rd5 {[%emt 0:04:50]} 23. Nxc6 {[%emt 0:09:53]} Nxc6 {[%emt 0:00:40]} 24. Be4 {[%emt 0:01:14]} Rb5 {[%emt 0:01:53]} 25. b3 {[%emt 0:02:28]} Ra5 {[%emt 0:03:29]} 26. Bb1 {[%emt 0:04:33]} Rd8 {[%emt 0:00:55]} 27. a4 {[%emt 0:03:36]} Rad5 {[%emt 0:00:49]} 28. Rc2 {[%emt 0:08:31]} Rd1 {[%emt 0:01:55]} 29. Rb2 {[%emt 0:00:36]} f5 {[%emt 0:01:43]} 30. Rc4 {[%emt 0:02:24]} Rh1 {[%emt 0:01:14]} 31. Bc2 {[%emt 0:02:19]} Rxh2 {[%emt 0:01:10]} 32. b4 {[%emt 0:00:39]} Rd7 {[%emt 0:02:02]} 33. a5 {[%emt 0:00:50]} Ne5 {[%emt 0:00:53]} 34. Rc8+ {[%emt 0:00:01]} Kf7 {[%emt 0:00:43]} 35. Ba4 {[%emt 0:01:13]} Rd6 {[%emt 0:02:20]} 36. Rbc2 {[%emt 0:01:18]} Nd3 {[%emt 0:00:41]} 37. Kf1 {[%emt 0:01:11]} Rh1+ {[%emt 0:00:34]} 38. Kg2 {[%emt 0:00:30]} Ra1 {[%emt 0:00:42]} 39. R2c7+ {[%emt 0:00:52]} Kf6 {[%emt 0:00:09]} 40. f4 {[%emt 0:00:00]} Nxf4+ {[%emt 0:00:00]} 41. exf4 {[%emt 0:02:15]} Rd2+ {[%emt 0:05:20]} 42. Kf3 {[%emt 0:02:02]} Ra3+ {[%emt 0:00:08]} 43. Rc3 {[%emt 0:00:13]} Rxa4 {[%emt 0:00:12]} 44. Ke3 {[%emt 0:04:10]} Rd7 {[%emt 0:00:16]} 45. R3c4 {[%emt 0:00:52]} Ra3+ {[%emt 0:00:15]} 46. Ke2 {[%emt 0:00:23]} Rad3 {[%emt 0:01:36]} 47. Ra8 {[%emt 0:07:14]} Rd2+ {[%emt 0:00:46]} 48. Ke1 {[%emt 0:00:24]} a6 {[%emt 0:01:15]} 49. Rf8+ {[%emt 0:02:53]} Kg7 {[%emt 0:00:44]} 50. Rcc8 {[%emt 0:02:21]} R2d4 {[%emt 0:00:37]} 51. Rg8+ {[%emt 0:01:02]} Kh6 {[%emt 0:00:18]} 52. Rc3 {[%emt 0:00:36]} Re4+ {[%emt 0:00:42]} 53. Kf2 {[%emt 0:01:10]} Rxf4+ {[%emt 0:00:04]} 54. Ke2 {[%emt 0:00:52]} Rxb4 {[%emt 0:00:10]} 55. Rh3+ {[%emt 0:00:37]} Kg5 {[%emt 0:00:07]} 56. Rg3+ {[%emt 0:00:34]} Kf4 {[%emt 0:00:29]} 57. Rh3 {[%emt 0:00:32]} Rb2+ {[%emt 0:00:26]} 58. Ke1 {[%emt 0:00:02]} Kg4 0-1

[Event "58th Akiba Rubinstein B 2022"]
[Site "Polanica-Zdroj"]
[Date "2022.08.17"]
[Round "5.9"]
[White "Twardowski, Hubert"]
[Black "Smukowski, Bartosz"]
[Result "*"]
[ECO "D20"]
[WhiteElo "1849"]
[BlackElo "1696"]
[Annotator "NA RC"]
[PlyCount "42"]
[EventDate "2022.08.13"]
[EventCountry "POL"]
[SourceTitle "playchess.com"]
[Source "ChessBase"]
[SourceQuality "1"]
[TimeControl "40/5400+30:1800+30"]

1. d4 {[%emt 0:00:03]} d5 {[%emt 0:00:05]} 2. c4 {[%emt 0:00:05]} dxc4 {[%emt 0:00:02]} 3. e4 {[%emt 0:00:04]} e5 {[%emt 0:00:05]} 4. d5 {[%emt 0:01:05]} c6 {[%emt 0:01:27]} 5. Bxc4 {[%emt 0:00:19]} Nf6 {[%emt 0:00:42]} 6. Bg5 {[%emt 0:03:03]} h6 {[%emt 0:07:56]} 7. Bxf6 {[%emt 0:05:07]} Qxf6 {[%emt 0:03:08]} 8. Nf3 {[%emt 0:02:34]} Bb4+ {[%emt 0:07:02]} 9. Nbd2 {[%emt 0:00:52]} Bg4 {[%emt 0:02:13]} 10. Qb3 {[%emt 0:01:15]} Bxd2+ {[%emt 0:08:59]} 11. Nxd2 {[%emt 0:01:26]} Bc8 {[%emt 0:01:57]} 12. O-O {[%emt 0:03:27]} O-O {[%emt 0:00:32]} 13. Qg3 {[%emt 0:06:54]} Nd7 {[%emt 0:02:00]} 14. dxc6 {[%emt 0:11:14]} bxc6 {[%emt 0:00:31]} 15. Rac1 {[%emt 0:13:02]} Nb6 {[%emt 0:00:30]} 16. Bb3 {[%emt 0:00:22]} Ba6 {[%emt 0:00:12]} 17. Rfd1 {[%emt 0:04:55]} Be2 {[%emt 0:03:29]} 18. Re1 {[%emt 0:00:12]} Ba6 {[%emt 0:00:14]} 19. Red1 {[%emt 0:00:44]} Be2 {[%emt 0:00:07]} 20. Re1 {[%emt 0:00:05]} Ba6 {[%emt 0:00:02]} 21. Nf3 {[%emt 0:00:57]} Rfe8 {[%emt 0:03:10]} *

[Event "58th Akiba Rubinstein B 2022"]
[Site "Polanica-Zdroj"]
[Date "2022.08.17"]
[Round "5.9"]
[White "Jankowski, Aleksander"]
[Black "Wilk, Aleksander"]
[Result "1/2-1/2"]
[ECO "D20"]
[WhiteElo "1715"]
[BlackElo "1569"]
[Annotator "NA RC"]
[PlyCount "102"]
[EventDate "2022.08.13"]
[EventCountry "POL"]
[SourceTitle "playchess.com"]
[Source "ChessBase"]
[SourceQuality "1"]
[TimeControl "40/5400+30:1800+30"]

1. d4 {[%emt 0:00:03]} d5 {[%emt 0:00:05]} 2. c4 {[%emt 0:00:05]} dxc4 {[%emt 0:00:02]} 3. e4 {[%emt 0:00:04]} e5 {[%emt 0:00:05]} 4. d5 {[%emt 0:01:05]} c6 {[%emt 0:01:27]} 5. Bxc4 {[%emt 0:00:19]} Nf6 {[%emt 0:00:42]} 6. Bg5 {[%emt 0:03:03]} h6 {[%emt 0:07:56]} 7. Bxf6 {[%emt 0:05:07]} Qxf6 {[%emt 0:03:08]} 8. Nf3 {[%emt 0:02:34]} Bb4+ {[%emt 0:07:02]} 9. Nbd2 {[%emt 0:00:52]} Bg4 {[%emt 0:02:13]} 10. Qb3 {[%emt 0:01:15]} Bxd2+ {[%emt 0:08:59]} 11. Nxd2 {[%emt 0:01:26]} Bc8 {[%emt 0:01:57]} 12. O-O {[%emt 0:03:27]} O-O {[%emt 0:00:32]} 13. Qg3 {[%emt 0:06:54]} Nd7 {[%emt 0:02:00]} 14. dxc6 {[%emt 0:11:14]} bxc6 {[%emt 0:00:31]} 15. Rac1 {[%emt 0:13:02]} Nb6 {[%emt 0:00:30]} 16. Bb3 {[%emt 0:00:22]} Ba6 {[%emt 0:00:12]} 17. Rfd1 {[%emt 0:04:55]} Be2 {[%emt 0:03:29]} 18. Re1 {[%emt 0:00:12]} Ba6 {[%emt 0:00:14]} 19. Red1 {[%emt 0:00:44]} Be2 {[%emt 0:00:07]} 20. Re1 {[%emt 0:00:05]} Ba6 {[%emt 0:00:02]} 21. Nf3 {[%emt 0:00:57]} Rfe8 {[%emt 0:03:10]} 22. Nh4 {[%emt 0:02:41]} c5 {[%emt 0:15:24]} 23. Rxc5 {[%emt 0:05:55]} Rac8 {[%emt 0:00:29]} 24. Rec1 {[%emt 0:03:02]} Rxc5 {[%emt 0:00:13]} 25. Rxc5 {[%emt 0:00:06]} Rc8 {[%emt 0:00:11]} 26. Rxc8+ {[%emt 0:01:18]} Nxc8 {[%emt 0:00:25]} 27. Nf5 {[%emt 0:04:08]} Nd6 {[%emt 0:01:28]} 28. Nxd6 {[%emt 0:03:02]} Qxd6 {[%emt 0:00:07]} 29. Qf3 {[%emt 0:02:50]} Qc7 {[%emt 0:00:31]} 30. Qc3 {[%emt 0:00:15]} Qxc3 {[%emt 0:01:01]} 31. bxc3 {[%emt 0:00:01]} Kf8 {[%emt 0:00:07]} 32. f3 {[%emt 0:00:14]} f6 {[%emt 0:00:01]} 33. Kf2 {[%emt 0:00:07]} Ke7 {[%emt 0:00:06]} 34. Ke3 {[%emt 0:00:08]} Kd6 {[%emt 0:00:13]} 35. f4 {[%emt 0:02:45]} Bf1 {[%emt 0:00:22]} 36. g3 {[%emt 0:00:11]} g5 {[%emt 0:00:50]} 37. h4 {[%emt 0:05:01]} exf4+ {[%emt 0:00:45]} 38. gxf4 {[%emt 0:00:37]} gxh4 {[%emt 0:00:20]} 39. Kf3 {[%emt 0:01:46]} h3 {[%emt 0:01:26]} 40. Kg3 {[%emt 0:00:00]} Bg2 {[%emt 0:00:00]} 41. Bc2 {[%emt 0:02:46]} h5 {[%emt 0:02:18]} 42. Bd3 {[%emt 0:01:00]} h4+ {[%emt 0:00:31]} 43. Kh2 {[%emt 0:00:26]} a5 {[%emt 0:00:36]} 44. a3 {[%emt 0:00:19]} Kc5 {[%emt 0:00:55]} 45. Kg1 {[%emt 0:00:34]} Kd6 {[%emt 0:00:33]} 46. c4 {[%emt 0:06:07]} Bf3 {[%emt 0:10:01]} 47. Kh2 {[%emt 0:02:32]} Bg2 {[%emt 0:00:09]} 48. Bc2 {[%emt 0:21:09]} Bf1 {[%emt 0:10:32]} 49. Bb1 {[%emt 0:00:35]} Kc5 {[%emt 0:03:15]} 50. e5 {[%emt 0:00:36]} fxe5 {[%emt 0:03:01]} 51. fxe5 {[%emt 0:00:01]} Bxc4 {[%emt 0:00:18]} 1/2-1/2

[Event "58th Akiba Rubinstein B 2022"]
[Site "Polanica-Zdroj"]
[Date "2022.08.17"]
[Round "5.10"]
[White "Trusz, Julia"]
[Black "Owoc, Jakub"]
[Result "1/2-1/2"]
[ECO "A11"]
[WhiteElo "1706"]
[BlackElo "1756"]
[Annotator "NA RC"]
[PlyCount "46"]
[EventDate "2022.08.13"]
[EventCountry "POL"]
[SourceTitle "playchess.com"]
[Source "ChessBase"]
[SourceQuality "1"]
[TimeControl "40/5400+30:1800+30"]

1. c4 {[%emt 0:00:03]} c6 {[%emt 0:00:04]} 2. g3 {[%emt 0:00:31]} d5 {[%emt 0:00:14]} 3. Bg2 {[%emt 0:00:03]} Nf6 {[%emt 0:00:15]} 4. Nf3 {[%emt 0:00:07]} e6 {[%emt 0:00:32]} 5. cxd5 {[%emt 0:02:34]} exd5 {[%emt 0:02:39]} 6. d4 {[%emt 0:00:04]} Bd6 {[%emt 0:00:24]} 7. Bf4 {[%emt 0:00:58]} O-O {[%emt 0:02:20]} 8. O-O {[%emt 0:00:35]} Bxf4 {[%emt 0:03:41]} 9. gxf4 {[%emt 0:00:05]} Ne4 {[%emt 0:00:16]} 10. Nbd2 {[%emt 0:02:59]} Bf5 {[%emt 0:00:20]} 11. Nxe4 {[%emt 0:06:37]} Bxe4 {[%emt 0:00:08]} 12. Ng5 {[%emt 0:00:55]} Bxg2 {[%emt 0:02:04]} 13. Kxg2 {[%emt 0:00:05]} Nd7 {[%emt 0:00:11]} 14. e3 {[%emt 0:01:34]} Nf6 {[%emt 0:02:09]} 15. Rg1 {[%emt 0:02:57]} Ne4 {[%emt 0:04:00]} 16. Nxe4 {[%emt 0:04:48]} dxe4 {[%emt 0:00:01]} 17. Kh1 {[%emt 0:00:07]} f5 {[%emt 0:00:17]} 18. Qb3+ {[%emt 0:00:54]} Rf7 {[%emt 0:00:06]} 19. Rg5 {[%emt 0:05:48]} Qd7 {[%emt 0:01:27]} 20. Rag1 {[%emt 0:00:50]} Kh8 {[%emt 0:00:05]} 21. Qc4 {[%emt 0:05:13]} Rg8 {[%emt 0:06:55]} 22. Qe2 {[%emt 0:09:00]} Rf6 {[%emt 0:01:50]} 23. Qh5 {[%emt 0:10:37]} Qf7 {[%emt 0:00:08]} 1/2-1/2

[Event "58th Akiba Rubinstein B 2022"]
[Site "Polanica-Zdroj"]
[Date "2022.08.17"]
[Round "5.11"]
[White "Lewandrowski, Tomasz"]
[Black "Wesolek, Krzysztof"]
[Result "1/2-1/2"]
[ECO "D00"]
[WhiteElo "1902"]
[BlackElo "1747"]
[Annotator "TA"]
[PlyCount "93"]
[EventDate "2022.08.13"]
[EventCountry "POL"]
[SourceTitle "playchess.com"]
[Source "ChessBase"]
[SourceQuality "1"]
[TimeControl "40/5400+30:1800+30"]

{[%evp 9,93,-36,-32,-41,-50,-99,-97,-116,-104,-135,-145,-162,-157,-134,-102,-122,-45,-62,-48,-34,-27,-47,-23,-126,-57,-223,-214,-200,-211,-192,-190,-185,-195,-302,-200,-280,-289,-289,-285,-306,-290,-293,-297,-366,-354,-357,-254,-447,-146,-407,-186,-862,-852,-852,-866,-868,-865,-832,-854,-790,-777,-864,-856,-981,-979,-961,-954,-910,-796,-801,-689,-784,-728,-671,-668,-712,-693,-695,-680,-666,-429,-409,0,-671,0,-360]} 1. d4 {[%emt 0:00:02]} d5 {[%emt 0:00:07]} 2. Nc3 {[%emt 0:00:05]} Nf6 {[%emt 0:00:06]} 3. Bf4 {[%emt 0:00:04]} a6 {[%emt 0:00:06]} 4. e3 {[%emt 0:00:14]} e6 {[%emt 0:00:07]} 5. h4 {[%emt 0:00:40]} c5 {[%emt 0:02:17]} 6. dxc5 {[%emt 0:00:54] D00: 1 d4 d5: Unusual lines.} Bxc5 {[%emt 0:00:20] [#]} 7. Qd2 $146 {[%emt 0:03:59]} (7. h5 $15 {is more appropriate.}) ({Predecessor:} 7. Bd3 Nc6 8. Nf3 Qe7 9. Ne5 Bd6 10. Ng4 Bxf4 11. exf4 Nd7 12. g3 h5 13. Nh2 {½-½ (44) Milovic,A (2129)-Alboredo,J (2264) Chennai 2022}) 7... Nbd7 {[%emt 0:03:58]} 8. O-O-O {[%emt 0:02:42] Black is better.} b5 {[%emt 0:00:35]} 9. f3 {[%emt 0:03:08]} Bb7 {[%emt 0:02:30]} 10. g4 {[%emt 0:06:39]} Rc8 {[%emt 0:05:06][%cal Od5d4]} 11. Kb1 {[%emt 0:17:53]} Qe7 {[%emt 0:29:14]} 12. h5 {[%emt 0:04:03]} h6 {[%emt 0:07:36]} ({Black should try} 12... Nb6 $17 {Strongly threatening ...b4.} 13. h6 g6) 13. g5 $1 $15 {[%emt 0:01:40]} hxg5 {[%emt 0:00:13]} 14. Bxg5 {[%emt 0:00:09]} Bb4 $36 {[%emt 0:00:31][%mdl 2048] White is under pressure.} 15. Nge2 {[%emt 0:01:46]} Ne5 {[%emt 0:03:51]} (15... Ba5 $5 {[%cal Rb5b4]} 16. Qc1 b4 $15) 16. Bg2 {[%emt 0:07:29] [#] Black converts the advantage convincingly.} (16. Rh3 $1 $11) 16... Nc4 {[%emt 0:03:12]} (16... Ne4 $1 $17 {[%cal Re4d2][%mdl 512]} 17. Nxe4 Bxd2 18. Bxe7 dxe4 19. fxe4 Nc4) 17. Qd3 {[%emt 0:04:09] [#]} (17. Qc1 $1 $15) 17... Nxb2 $1 {[%emt 0:03:58][%mdl 512]} 18. Kxb2 {[%emt 0:12:15] Ka1 is the strong threat.} Bxc3+ {[%emt 0:00:52]} 19. Nxc3 {[%emt 0:00:38]} Qb4+ {[%emt 0:00:08][%mdl 64] Deflection} 20. Ka1 {[%emt 0:00:40][%cal Oh5h6] Threatens to win with h6!} Rxc3 {[%emt 0:10:56]} 21. Qe2 {[%emt 0:01:16]} (21. Qd2 {was called for.} Qc5 22. Kb1) 21... Rc4 {[%emt 0:08:11]} 22. Rd3 {[%emt 0:01:39]} Rxh5 {[%emt 0:03:34]} 23. Rxh5 {[%emt 0:00:33]} Nxh5 {[%emt 0:00:06]} 24. e4 {[%emt 0:00:36]} Qc5 {[%emt 0:03:39]} 25. Kb1 {[%emt 0:02:41]} Nf6 {[%emt 0:05:23][%cal Rd5e4]} 26. e5 {[%emt 0:00:49]} Nd7 {[%emt 0:00:22]} 27. f4 {[%emt 0:00:49]} g6 {[%emt 0:01:20]} 28. Rh3 $2 {[%emt 0:01:36]} (28. Bf3 {might work better.}) 28... Qd4 $2 {[%emt 0:05:27]} (28... Nb6 $19 {and Black stays clearly on top.} 29. Bf1 Na4) 29. Rh8+ {[%emt 0:06:07]} Nf8 {[%emt 0:00:07]} 30. Bh6 $2 {[%emt 0:00:02]} (30. Rh3) 30... Rb4+ $19 {[%emt 0:00:16]} 31. Kc1 {[%emt 0:00:11]} Qa1+ {[%emt 0:00:54]} 32. Kd2 {[%emt 0:00:01]} Rd4+ {[%emt 0:00:20]} 33. Ke3 {[%emt 0:00:49] [#]} Qc3+ $1 {[%emt 0:00:07]} 34. Kf2 {[%emt 0:00:59]} Rd2 {[%emt 0:00:05]} 35. Rxf8+ {[%emt 0:00:42]} Ke7 {[%emt 0:00:22][%cal Od5d4] And now ...d4! would win.} 36. Rb8 {[%emt 0:00:40]} Rxe2+ {[%emt 0:00:10]} 37. Kxe2 {[%emt 0:00:01]} Qxc2+ {[%emt 0:00:20]} 38. Kf1 {[%emt 0:00:07]} Qd1+ {[%emt 0:01:32]} 39. Kf2 {[%emt 0:00:02]} Qd2+ {[%emt 0:00:45]} 40. Kg3 {[%emt 0:00:00]} Qe1+ {[%emt 0:00:00]} 41. Kg4 {[%emt 0:03:33]} Qd1+ {[%emt 0:13:42]} 42. Kg3 {[%emt 0:02:57]} Bc6 {[%emt 0:06:07]} 43. Bg5+ {[%emt 0:07:54]} Kd7 {[%emt 0:00:17]} 44. Rf8 {[%emt 0:00:08]} Kc7 {[%emt 0:07:55]} 45. Bd8+ {[%emt 0:01:00]} Kd7 {[%emt 0:03:46]} 46. Bg5 $1 {[%emt 0:01:21]} Kc7 {[%emt 0:00:43]} 47. Bd8+ $1 {[%mdl 32768] Weighted Error Value: White=0.70/Black=0.30. An unexpected result.} 1/2-1/2

[Event "58th Akiba Rubinstein B 2022"]
[Site "Polanica-Zdroj"]
[Date "2022.08.17"]
[Round "5.11"]
[White "Graff, Slawomir"]
[Black "Terkiewicz, Bruno"]
[Result "*"]
[ECO "D00"]
[WhiteElo "1782"]
[BlackElo "1473"]
[Annotator "NA RC"]
[PlyCount "30"]
[EventDate "2022.08.13"]
[EventCountry "POL"]
[SourceTitle "playchess.com"]
[Source "ChessBase"]
[SourceQuality "1"]
[TimeControl "40/5400+30:1800+30"]

1. d4 {[%emt 0:00:02]} d5 {[%emt 0:00:07]} 2. Nc3 {[%emt 0:00:05]} Nf6 {[%emt 0:00:06]} 3. Bf4 {[%emt 0:00:04]} a6 {[%emt 0:00:06]} 4. e3 {[%emt 0:00:14]} e6 {[%emt 0:00:07]} 5. h4 {[%emt 0:00:40]} c5 {[%emt 0:02:17]} 6. dxc5 {[%emt 0:00:54]} Bxc5 {[%emt 0:00:20]} 7. Qd2 {[%emt 0:03:59]} Nbd7 {[%emt 0:03:58]} 8. O-O-O {[%emt 0:02:42]} b5 {[%emt 0:00:35]} 9. f3 {[%emt 0:03:08]} Bb7 {[%emt 0:02:30]} 10. g4 {[%emt 0:06:39]} Rc8 {[%emt 0:05:06]} 11. Kb1 {[%emt 0:17:53]} Qe7 {[%emt 0:29:14]} 12. h5 {[%emt 0:04:03]} h6 {[%emt 0:07:36]} 13. g5 {[%emt 0:01:40]} hxg5 {[%emt 0:00:13]} 14. Bxg5 {[%emt 0:00:09]} Bb4 {[%emt 0:00:31]} 15. Nge2 {[%emt 0:01:46]} Ne5 {[%emt 0:03:51]} *